fUSD/lending_fUSD_20250730
["ID","MTS","AMOUNT","RATE_DAILY","PERIOD"]
[376039529,1753834237072,-605.18,0.00016604,2]
[376039530,1753834237082,-2060.52,0.00016604,2]
[376039531,1753834237102,-491.4,0.00016604,2]
[376039532,1753834237112,-1236.13,0.00016604,2]
[376039533,1753834237121,-400.0,0.00016604,2]
[376039534,1753834237131,-566.56,0.00016604,2]
[376039535,1753834237141,-636.08,0.00016604,2]
[376039536,1753834237151,-400.0,0.00016604,2]
[376039537,1753834237160,-3837.06,0.00016604,2]
[376039538,1753834237170,-576.35,0.00016604,2]
[376039539,1753834237181,-400.0,0.00016604,2]
[376039540,1753834237192,-400.0,0.00016604,2]
[376039541,1753834237202,-423.1,0.00016604,2]
[376039542,1753834237211,-414.44,0.00016604,2]
[376039543,1753834237221,-888.51,0.00016604,2]
[376039544,1753834237231,-3086.75,0.00016604,2]
[376039545,1753834237241,-400.0,0.00016604,2]
[376039546,1753834237250,-400.0,0.00016604,2]
[376039547,1753834237259,-430.62,0.00016604,2]
[376039548,1753834237270,-993.73,0.00016604,2]
[376039549,1753834237279,-460.26,0.00016604,2]
[376039550,1753834237289,-800.39,0.00016604,2]
[376039551,1753834237298,-400.0,0.00016604,2]
[376039553,1753834237308,-1131.61,0.00016604,2]
[376039554,1753834237318,-400.0,0.00016604,2]
[376039555,1753834237327,-400.0,0.00016604,2]
[376039556,1753834237337,-811.81,0.00016604,2]
[376039557,1753834237346,-400.0,0.00016604,2]
[376039558,1753834237356,-400.0,0.00016604,2]
[376039559,1753834237365,-400.0,0.00016604,2]
[376039560,1753834237375,-557.51,0.00016604,2]
[376039561,1753834237384,-423.99,0.00016604,2]
[376039562,1753834237394,-400.0,0.00016604,2]
[376039563,1753834237403,-618.96,0.00016604,2]
[376039564,1753834237412,-400.0,0.00016604,2]
[376039565,1753834237421,-2297.7,0.00016604,2]
[376039566,1753834237431,-4042.51,0.00016604,2]
[376039567,1753834237440,-400.0,0.00016604,2]
[376039568,1753834237450,-400.0,0.00016604,2]
[376039569,1753834237459,-2355.49,0.00016604,2]
[376039570,1753834237469,-400.0,0.00016604,2]
[376039571,1753834237479,-2771.29,0.00016604,2]
[376039572,1753834237488,-400.0,0.00016604,2]
[376039573,1753834237498,-400.0,0.00016604,2]
[376039574,1753834237508,-2003.29,0.00016604,2]
[376039575,1753834237518,-2504.58,0.00016604,2]
[376039576,1753834237527,-1268.72,0.00016604,2]
[376039577,1753834237537,-400.0,0.00016604,2]
[376039578,1753834237546,-1378.11,0.00016604,2]
[376039579,1753834237556,-482.97,0.00016604,2]
[376039580,1753834237565,-400.0,0.00016604,2]
[376039581,1753834237575,-710.62,0.00016604,2]
[376039582,1753834237584,-942.64,0.00016604,2]
[376039583,1753834237595,-400.0,0.00016604,2]
[376039584,1753834237605,-511.4,0.00016604,2]
[376039585,1753834237614,-551.19,0.00016604,2]
[376039586,1753834237623,-527.23426534,0.00016604,2]
[376039587,1753834237633,-519.83,0.00016604,2]
[376039588,1753834237642,-400.0,0.00016604,2]
[376039589,1753834237651,-400.0,0.00016604,2]
[376039590,1753834237661,-2939.21,0.00016604,2]
[376039591,1753834237670,-669.55,0.00016604,2]
[376039592,1753834237680,-400.0,0.00016604,2]
[376039593,1753834237690,-400.0,0.00016604,2]
[376039594,1753834237699,-436.84,0.00016604,2]
[376039595,1753834237708,-400.0,0.00016604,2]
[376039596,1753834237717,-547.62,0.00016604,2]
[376039597,1753834237727,-463.58,0.00016604,2]
[376039598,1753834237737,-681.12,0.00016604,2]
[376039599,1753834237746,-400.0,0.00016604,2]
[376039600,1753834237755,-400.0,0.00016604,2]
[376039601,1753834237765,-4018.45,0.00016604,2]
[376039602,1753834237774,-400.0,0.00016604,2]
[376039603,1753834237784,-400.0,0.00016604,2]
[376039604,1753834237795,-1403.53,0.00016604,2]
[376039605,1753834237806,-400.0,0.00016604,2]
[376039606,1753834237816,-3409.35,0.00016604,2]
[376039608,1753834237827,-1804.15,0.00016604,2]
[376039609,1753834237837,-1337.09,0.00016604,2]
[376039610,1753834237847,-1091.68,0.00016604,2]
[376039611,1753834237859,-331.6278023,0.00016604,2]
[376039612,1753834237871,-463.67,0.00016604,2]
[376039613,1753834237881,-400.0,0.00016604,2]
[376039614,1753834237890,-400.0,0.00016604,2]
[376039615,1753834237900,-954.47,0.00016604,2]
[376039616,1753834237910,-822.5,0.00016604,2]
[376039617,1753834237920,-538.72,0.00016604,2]
[376039618,1753834237930,-888.34,0.00016604,2]
[376039619,1753834237939,-2506.01,0.00016604,2]
[376039620,1753834237948,-400.0,0.00016604,2]
[376039621,1753834237957,-400.0,0.00016604,2]
[376039622,1753834237967,-629.73,0.00016604,2]
[376039623,1753834237976,-205.48114567,0.00016604,2]
[376039624,1753834237986,-2165.84,0.00016604,2]
[376039625,1753834237995,-2052.12,0.00016604,2]
[376039626,1753834238005,-400.0,0.00016604,2]
[376039627,1753834238016,-400.0,0.00016604,2]
[376039628,1753834238025,-1160.92,0.00016604,2]
[376039629,1753834238034,-978.09,0.00016604,2]
[376039630,1753834238043,-400.0,0.00016604,2]
[376039631,1753834238053,-400.0,0.00016604,2]
[376039632,1753834238063,-664.13,0.00016604,2]
[376039633,1753834238074,-1171.72,0.00016604,2]
[376039634,1753834238084,-1458.38,0.00016604,2]
[376039635,1753834238094,-500.0,0.00016604,2]
[376039636,1753834238103,-983.89,0.00016604,2]
[376039637,1753834238113,-400.0,0.00016604,2]
[376039638,1753834238124,-1221.45,0.00016604,2]
[376039639,1753834238134,-400.0,0.00016604,2]
[376039640,1753834238144,-1854.02,0.00016604,2]
[376039641,1753834238154,-1730.01,0.00016604,2]
[376039642,1753834238164,-590.73,0.00016604,2]
[376039643,1753834238174,-400.0,0.00016604,2]
[376039644,1753834238184,-599.39,0.00016604,2]
[376039645,1753834238198,-400.0,0.00016604,2]
[376039646,1753834238207,-400.0,0.00016604,2]
[376039647,1753834238216,-400.0,0.00016604,2]
[376039648,1753834238227,-400.0,0.00016604,2]
[376039649,1753834238236,-1207.21,0.00016604,2]
[376039650,1753834238246,-1152.9,0.00016604,2]
[376039651,1753834238256,-400.0,0.00016604,2]
[376039652,1753834238266,-1037.12,0.00016604,2]
[376039653,1753834238276,-442.9,0.00016604,2]
[376039654,1753834238286,-1228.78,0.00016604,2]
[376039655,1753834238295,-424.96,0.00016604,2]
[376039656,1753834238305,-400.0,0.00016604,2]
[376039657,1753834238314,-400.0,0.00016604,2]
[376039658,1753834238323,-959.7,0.00016604,2]
[376039659,1753834238333,-400.0,0.00016604,2]
[376039660,1753834238342,-2331.08,0.00016604,2]
[376039661,1753834238354,-485.09,0.00016604,2]
[376039662,1753834238363,-400.0,0.00016604,2]
[376039663,1753834238373,-2740.44,0.00016604,2]
[376039664,1753834238382,-610.4,0.00016604,2]
[376039665,1753834238391,-713.33,0.00016604,2]
[376039666,1753834238401,-1932.52,0.00016604,2]
[376039667,1753834238412,-433.7,0.00016605,2]
[376039669,1753834238423,-1363.26,0.00016605,2]
[376039671,1753834238433,-441.86,0.00016605,2]
[376039673,1753834238443,-1050.29,0.00016605,2]
[376039675,1753834238452,-1865.12,0.00016605,2]
[376039677,1753834238462,-5221.57,0.00016605,2]
[376039679,1753834238471,-1299.81,0.00016605,2]
[376039681,1753834238480,-515.64,0.00016605,2]
[376039683,1753834238490,-1092.41,0.00016605,2]
[376039685,1753834238500,-431.84,0.00016605,2]
[376039687,1753834238510,-400.0,0.00016605,2]
[376039689,1753834238520,-518.32,0.00016605,2]
[376039691,1753834238529,-400.0,0.00016605,2]
[376039693,1753834238539,-807.49,0.00016605,2]
[376039695,1753834238549,-571.07,0.00016605,2]
[376039697,1753834238559,-594.5,0.00016605,2]
[376039699,1753834238569,-400.0,0.00016605,2]
[376039701,1753834238578,-400.0,0.00016605,2]
[376039703,1753834238588,-400.0,0.00016605,2]
[376039705,1753834238597,-792.7,0.00016605,2]
[376039707,1753834238607,-400.0,0.00016605,2]
[376039709,1753834238616,-400.0,0.00016605,2]
[376039711,1753834238625,-400.0,0.00016605,2]
[376039713,1753834238635,-810.82,0.00016605,2]
[376039715,1753834238644,-400.0,0.00016605,2]
[376039717,1753834238654,-469.43,0.00016605,2]
[376039719,1753834238663,-827.9,0.00016605,2]
[376039721,1753834238673,-1096.52,0.00016605,2]
[376039723,1753834238684,-400.0,0.00016605,2]
[376039725,1753834238694,-548.4,0.00016605,2]
[376039727,1753834238703,-400.0,0.00016605,2]
[376039729,1753834238712,-400.0,0.00016605,2]
[376039731,1753834238722,-767.31,0.00016605,2]
[376039734,1753834238733,-3513.93,0.00016605,2]
[376039735,1753834238743,-414.08,0.00016605,2]
[376039738,1753834238754,-400.0,0.00016605,2]
[376039740,1753834238766,-1464.26,0.00016605,2]
[376039741,1753834238778,-3947.33,0.00016605,2]
[376039744,1753834238788,-458.5,0.00016605,2]
[376039746,1753834238797,-209.82635947,0.00016605,2]
[376039747,1753834238807,-1151.15,0.00016605,2]
[376039756,1753834238816,-1815.08,0.00016605,2]
[376039759,1753834238898,-662.39,0.00016605,2]
[376039761,1753834238907,-966.74,0.00016605,2]
[376039763,1753834238916,-9604.74,0.00016605,2]
[376039764,1753834238926,-1855.18,0.00016605,2]
[376039766,1753834238935,-1824.53,0.00016605,2]
[376039768,1753834238944,-1983.9,0.00016605,2]
[376039770,1753834238953,-883.69,0.00016605,2]
[376039772,1753834238963,-8581.36,0.00016605,2]
[376039774,1753834238972,-1801.98,0.00016605,2]
[376039776,1753834238981,-1114.99,0.00016605,2]
[376039778,1753834238991,-989.72,0.00016605,2]
[376039780,1753834239000,-818.44,0.00016605,2]
[376039782,1753834239009,-1248.4,0.00016605,2]
[376039784,1753834239018,-2588.23,0.00016605,2]
[376039786,1753834239028,-1458.46,0.00016605,2]
[376039788,1753834239037,-1418.27,0.00016605,2]
[376039790,1753834239047,-1318.09,0.00016605,2]
[376039792,1753834239056,-400.0,0.00016605,2]
[376039794,1753834239065,-1394.15,0.00016605,2]
[376039796,1753834239085,-1979.64,0.00016606,2]
[376039799,1753834239095,-506.82,0.00016606,2]
[376039801,1753834239104,-2665.13,0.00016606,2]
[376039803,1753834239114,-1452.65,0.00016606,2]
[376039805,1753834239124,-1277.7,0.00016606,2]
[376039806,1753834239133,-2525.99,0.00016606,2]
[376039809,1753834239143,-534.0,0.00016606,2]
[376039811,1753834239152,-400.0,0.00016606,2]
[376039813,1753834239162,-868.38,0.00016606,2]
[376039815,1753834239171,-637.68,0.00016606,2]
[376039817,1753834239180,-400.0,0.00016606,2]
[376039819,1753834239192,-1578.08,0.00016606,2]
[376039820,1753834239201,-2772.82804302,0.00016692,2]
[376039822,1753834239211,-2000.0,0.000168,2]
[376039824,1753834239220,-3906.651374,0.0001681,2]
[376039826,1753834239230,-165.47631758,0.00016877,2]
[376039828,1753834239239,-500.0,0.00016877,2]
[376039830,1753834239249,-200.35939855,0.00016877,2]
[376039832,1753834239258,-310.03901835,0.00016877,2]
[376039833,1753834239268,-400.0,0.00016877,2]
[376039834,1753834239278,-400.0,0.00016877,2]
[376039835,1753834239288,-400.0,0.00016877,2]
[376039836,1753834239297,-400.0,0.00016878,2]
[376039837,1753834239307,-400.0,0.00016878,2]
[376039838,1753834239316,-400.0,0.00016878,2]
[376039839,1753834239325,-886.716118,0.00016878,2]
[376039840,1753834239335,-1138.421571,0.00016878,2]
[376039841,1753834239344,-1145.627229,0.00016878,2]
[376039842,1753834239353,-228.34,0.00016878,2]
[376039843,1753834239362,-400.0,0.00016878,2]
[376039844,1753834239371,-400.0,0.00016878,2]
[376039845,1753834239380,-400.0,0.00016878,2]
[376039846,1753834239389,-400.0,0.00016878,2]
[376039847,1753834239399,-400.0,0.00016878,2]
[376039848,1753834239408,-404.89,0.00016878,2]
[376039850,1753834239417,-400.0,0.00016878,2]
[376039851,1753834239428,-400.0,0.00016878,2]
[376039853,1753834239437,-400.0,0.00016878,2]
[376039855,1753834239447,-421.0,0.00016878,2]
[376039857,1753834239457,-400.0,0.00016878,2]
[376039859,1753834239467,-400.0,0.00016878,2]
[376039861,1753834239476,-400.0,0.00016878,2]
[376039863,1753834239486,-400.0,0.00016878,2]
[376039865,1753834239495,-400.0,0.00016878,2]
[376039867,1753834239504,-400.0,0.00016878,2]
[376039869,1753834239514,-400.0,0.00016878,2]
[376039871,1753834239523,-405.97,0.00016878,2]
[376039873,1753834239533,-616.37,0.00016878,2]
[376039875,1753834239542,-400.0,0.00016878,2]
[376039877,1753834239552,-262.17,0.00016878,2]
[376039879,1753834239561,-438.83,0.00016878,2]
[376039881,1753834239570,-289.33885001,0.00016878,2]
[376039883,1753834239580,-703.01,0.00016878,2]
[376039885,1753834239590,-449.23,0.00016878,2]
[376039888,1753834239600,-593.85,0.00016878,2]
[376039889,1753834239610,-400.0,0.00016878,2]
[376039892,1753834239619,-400.0,0.00016878,2]
[376039893,1753834239629,-512.85,0.00016878,2]
[376039895,1753834239639,-400.0,0.00016878,2]
[376039897,1753834239648,-493.32,0.00016878,2]
[376039900,1753834239658,-494.6,0.00016878,2]
[376039902,1753834239667,-400.0,0.00016878,2]
[376039904,1753834239677,-470.19131297,0.00016878,2]
[376039906,1753834239690,-400.0,0.00016878,2]
[376039908,1753834239699,-400.0,0.00016878,2]
[376039910,1753834239708,-400.0,0.00016878,2]
[376039912,1753834239718,-400.0,0.00016878,2]
[376039914,1753834239727,-400.0,0.00016878,2]
[376039916,1753834239737,-507.46,0.00016878,2]
[376039918,1753834239746,-400.0,0.00016878,2]
[376039920,1753834239755,-400.0,0.00016878,2]
[376039922,1753834239764,-400.0,0.00016878,2]
[376039924,1753834239774,-400.0,0.00016878,2]
[376039926,1753834239783,-519.37,0.00016878,2]
[376039927,1753834239793,-400.0,0.00016878,2]
[376039930,1753834239803,-514.45,0.00016878,2]
[376039932,1753834239812,-317.34375145,0.00016878,2]
[376039933,1753834239822,-400.0,0.00016878,2]
[376039935,1753834239831,-400.0,0.00016878,2]
[376039937,1753834239841,-631.77,0.00016878,2]
[376039940,1753834239851,-400.0,0.00016878,2]
[376039941,1753834239860,-400.0,0.00016878,2]
[376039944,1753834239869,-400.0,0.00016878,2]
[376039945,1753834239879,-400.0,0.00016878,2]
[376039947,1753834239888,-400.0,0.00016878,2]
[376039949,1753834239897,-400.0,0.00016878,2]
[376039951,1753834239907,-400.0,0.00016878,2]
[376039953,1753834239916,-456.26,0.00016878,2]
[376039955,1753834239926,-207.05192617,0.00016878,2]
[376039957,1753834239935,-400.0,0.00016878,2]
[376039959,1753834239944,-400.0,0.00016878,2]
[376039961,1753834239953,-400.0,0.00016878,2]
[376039963,1753834239963,-400.0,0.00016878,2]
[376039965,1753834239973,-577.06,0.00016878,2]
[376039967,1753834239982,-467.87,0.00016878,2]
[376039969,1753834239992,-695.61,0.00016878,2]
[376039971,1753834240001,-400.0,0.00016878,2]
[376039973,1753834240010,-532.98,0.00016878,2]
[376039975,1753834240020,-221.89,0.00016878,2]
[376039977,1753834240029,-499.09,0.00016878,2]
[376039979,1753834240039,-400.0,0.00016878,2]
[376039981,1753834240048,-400.0,0.00016878,2]
[376039983,1753834240057,-744.7,0.00016878,2]
[376039985,1753834240067,-390.71,0.00016878,2]
[376039988,1753834240085,-400.0,0.00016878,2]
[376039990,1753834240097,-400.0,0.00016878,2]
[376039992,1753834240106,-727.12,0.00016878,2]
[376039994,1753834240116,-400.0,0.00016878,2]
[376039996,1753834240127,-400.0,0.00016878,2]
[376039998,1753834240137,-516.59,0.00016878,2]
[376040000,1753834240146,-668.07,0.00016878,2]
[376040002,1753834240156,-400.0,0.00016878,2]
[376040005,1753834240167,-400.0,0.00016878,2]
[376040007,1753834240178,-547.96,0.00016878,2]
[376040009,1753834240191,-400.0,0.00016878,2]
[376040011,1753834240201,-400.0,0.00016878,2]
[376040013,1753834240211,-400.0,0.00016878,2]
[376040015,1753834240220,-489.03,0.00016878,2]
[376040017,1753834240231,-400.0,0.00016878,2]
[376040019,1753834240240,-400.0,0.00016878,2]
[376040021,1753834240249,-527.81,0.00016878,2]
[376040023,1753834240260,-400.0,0.00016878,2]
[376040025,1753834240270,-400.0,0.00016878,2]
[376040027,1753834240279,-400.0,0.00016878,2]
[376040029,1753834240289,-400.22,0.00016878,2]
[376040031,1753834240299,-516.05,0.00016878,2]
[376040033,1753834240309,-550.6,0.00016878,2]
[376040035,1753834240319,-431.96,0.00016878,2]
[376040037,1753834240328,-400.0,0.00016878,2]
[376040039,1753834240337,-400.0,0.00016878,2]
[376040041,1753834240347,-462.56,0.00016878,2]
[376040043,1753834240356,-400.0,0.00016878,2]
[376040045,1753834240365,-400.0,0.00016878,2]
[376040047,1753834240375,-400.0,0.00016878,2]
[376040049,1753834240384,-400.0,0.00016878,2]
[376040051,1753834240394,-400.0,0.00016878,2]
[376040053,1753834240404,-400.0,0.00016878,2]
[376040055,1753834240414,-400.0,0.00016878,2]
[376040057,1753834240424,-400.0,0.00016878,2]
[376040059,1753834240435,-430.12,0.00016878,2]
[376040061,1753834240445,-569.28,0.00016878,2]
[376040063,1753834240455,-162.12,0.00016878,2]
[376040065,1753834240465,-400.0,0.00016878,2]
[376040067,1753834240475,-400.0,0.00016878,2]
[376040069,1753834240485,-400.0,0.00016878,2]
[376040071,1753834240494,-400.0,0.00016878,2]
[376040073,1753834240505,-400.0,0.00016878,2]
[376040075,1753834240515,-400.0,0.00016878,2]
[376040077,1753834240524,-400.0,0.00016878,2]
[376040079,1753834240534,-400.0,0.00016878,2]
[376040081,1753834240544,-400.0,0.00016878,2]
[376040083,1753834240553,-404.26,0.00016878,2]
[376040085,1753834240563,-238.03,0.00016878,2]
[376040087,1753834240573,-400.0,0.00016878,2]
[376040089,1753834240583,-433.85,0.00016878,2]
[376040091,1753834240593,-400.0,0.00016878,2]
[376040093,1753834240603,-671.29,0.00016878,2]
[376040095,1753834240613,-400.0,0.00016878,2]
[376040097,1753834240623,-400.0,0.00016878,2]
[376040099,1753834240633,-400.0,0.00016878,2]
[376040101,1753834240643,-450.14,0.00016878,2]
[376040103,1753834240652,-400.0,0.00016878,2]
[376040105,1753834240662,-577.34,0.00016878,2]
[376040107,1753834240673,-672.66,0.00016878,2]
[376040109,1753834240688,-380.42719187,0.00016878,2]
[376040111,1753834240699,-400.0,0.00016878,2]
[376040113,1753834240708,-428.12,0.00016878,2]
[376040115,1753834240718,-404.24,0.00016878,2]
[376040117,1753834240727,-400.0,0.00016878,2]
[376040119,1753834240737,-400.0,0.00016878,2]
[376040121,1753834240747,-812.4,0.00016878,2]
[376040123,1753834240757,-574.09,0.00016878,2]
[376040125,1753834240767,-429.03,0.00016878,2]
[376040127,1753834240777,-400.0,0.00016878,2]
[376040129,1753834240786,-512.64,0.00016878,2]
[376040131,1753834240796,-400.0,0.00016878,2]
[376040133,1753834240806,-673.2,0.00016878,2]
[376040135,1753834240816,-400.0,0.00016878,2]
[376040138,1753834240829,-400.0,0.00016878,2]
[376040140,1753834240839,-400.0,0.00016878,2]
[376040142,1753834240848,-601.13,0.00016878,2]
[376040144,1753834240858,-322.48060914,0.00016878,2]
[376040145,1753834240867,-426.29,0.00016878,2]
[376040148,1753834240877,-400.0,0.00016878,2]
[376040150,1753834240886,-1273.73,0.00016878,2]
[376040152,1753834240895,-447.74,0.00016878,2]
[376040154,1753834240905,-558.44,0.00016878,2]
[376040156,1753834240914,-400.0,0.00016878,2]
[376040158,1753834240924,-264.62989026,0.00016878,2]
[376040160,1753834240934,-647.08,0.00016878,2]
[376040162,1753834240943,-400.0,0.00016878,2]
[376040164,1753834240953,-529.52,0.00016878,2]
[376040166,1753834240962,-200.50824959,0.00016878,2]
[376040168,1753834240972,-400.0,0.00016878,2]
[376040170,1753834240982,-402.18,0.00016878,2]
[376040172,1753834240991,-400.0,0.00016878,2]
[376040174,1753834241002,-400.0,0.00016878,2]
[376040176,1753834241011,-698.65,0.00016878,2]
[376040178,1753834241021,-489.36,0.00016878,2]
[376040180,1753834241030,-458.67,0.00016878,2]
[376040182,1753834241040,-400.0,0.00016878,2]
[376040184,1753834241049,-664.94,0.00016878,2]
[376040186,1753834241058,-400.0,0.00016878,2]
[376040188,1753834241068,-400.0,0.00016878,2]
[376040190,1753834241078,-400.0,0.00016878,2]
[376040192,1753834241087,-1320.78,0.00016878,2]
[376040194,1753834241097,-674.32,0.00016878,2]
[376040196,1753834241107,-400.0,0.00016878,2]
[376040198,1753834241117,-400.0,0.00016878,2]
[376040200,1753834241126,-400.0,0.00016878,2]
[376040202,1753834241136,-400.0,0.00016878,2]
[376040204,1753834241146,-400.0,0.00016878,2]
[376040206,1753834241156,-400.0,0.00016878,2]
[376040207,1753834241165,-270.91997629,0.00016878,2]
[376040209,1753834241175,-459.06,0.00016878,2]
[376040211,1753834241186,-682.26,0.00016878,2]
[376040212,1753834241198,-554.19,0.00016878,2]
[376040213,1753834241208,-645.62,0.00016878,2]
[376040214,1753834241218,-400.0,0.00016878,2]
[376040215,1753834241227,-400.0,0.00016878,2]
[376040216,1753834241239,-400.0,0.00016878,2]
[376040218,1753834241249,-400.0,0.00016878,2]
[376040220,1753834241258,-540.0,0.00016878,2]
[376040222,1753834241271,-514.94,0.00016878,2]
[376040224,1753834241281,-2655.0,0.00016878,2]
[376040226,1753834241291,-513.25,0.00016878,2]
[376040228,1753834241301,-1080.69,0.00016878,2]
[376040230,1753834241311,-400.0,0.00016878,2]
[376040232,1753834241323,-400.0,0.00016878,2]
[376040234,1753834241333,-400.0,0.00016878,2]
[376040236,1753834241342,-1523.66,0.00016878,2]
[376040238,1753834241352,-1308.0,0.00016878,2]
[376040240,1753834241362,-527.53,0.00016878,2]
[376040242,1753834241371,-1735.22,0.00016878,2]
[376040244,1753834241381,-400.0,0.00016878,2]
[376040247,1753834241395,-400.0,0.00016878,2]
[376040249,1753834241405,-573.77,0.00016878,2]
[376040251,1753834241415,-400.0,0.00016878,2]
[376040253,1753834241425,-400.0,0.00016878,2]
[376040255,1753834241435,-400.0,0.00016878,2]
[376040257,1753834241445,-1533.79,0.00016878,2]
[376040259,1753834241454,-21048.19,0.00016878,2]
[376040261,1753834241464,-400.0,0.00016878,2]
[376040263,1753834241474,-561.05,0.00016878,2]
[376040265,1753834241484,-1063.11,0.00016878,2]
[376040267,1753834241495,-933.67,0.00016878,2]
[376040269,1753834241504,-462.77,0.00016878,2]
[376040271,1753834241514,-941.08,0.00016878,2]
[376040273,1753834241525,-400.0,0.00016878,2]
[376040275,1753834241535,-1968.51,0.00016878,2]
[376040277,1753834241546,-454.47400354,0.00016878,2]
[376040279,1753834241555,-400.0,0.00016878,2]
[376040281,1753834241566,-479.94,0.00016878,2]
[376040283,1753834241575,-400.0,0.00016878,2]
[376040285,1753834241585,-308.39,0.00016878,2]
[376040287,1753834241595,-400.0,0.00016878,2]
[376040289,1753834241605,-1068.18,0.00016878,2]
[376040291,1753834241616,-400.0,0.00016878,2]
[376040293,1753834241626,-660.14,0.00016878,2]
[376040296,1753834241635,-2082.54,0.00016878,2]
[376040298,1753834241644,-400.0,0.00016878,2]
[376040300,1753834241655,-782.83,0.00016878,2]
[376040302,1753834241664,-400.0,0.00016878,2]
[376040304,1753834241674,-400.0,0.00016878,2]
[376040306,1753834241684,-451.46,0.00016878,2]
[376040308,1753834241693,-642.38,0.00016878,2]
[376040310,1753834241703,-400.0,0.00016878,2]
[376040312,1753834241713,-1124.2,0.00016878,2]
[376040314,1753834241722,-400.0,0.00016878,2]
[376040316,1753834241731,-400.0,0.00016878,2]
[376040318,1753834241741,-548.92,0.00016878,2]
[376040320,1753834241751,-400.0,0.00016878,2]
[376040322,1753834241761,-2252.3,0.00016878,2]
[376040324,1753834241770,-400.0,0.00016878,2]
[376040326,1753834241780,-400.0,0.00016878,2]
[376040328,1753834241791,-400.0,0.00016878,2]
[376040330,1753834241800,-1385.56,0.00016878,2]
[376040332,1753834241810,-490.65,0.00016878,2]
[376040334,1753834241819,-530.71,0.00016878,2]
[376040336,1753834241829,-450.27,0.00016878,2]
[376040338,1753834241839,-2161.59,0.00016878,2]
[376040340,1753834241848,-400.0,0.00016878,2]
[376040342,1753834241858,-400.0,0.00016878,2]
[376040344,1753834241867,-400.0,0.00016878,2]
[376040346,1753834241877,-4993.58,0.00016878,2]
[376040348,1753834241887,-975.46,0.00016878,2]
[376040350,1753834241897,-400.0,0.00016878,2]
[376040352,1753834241907,-596.08,0.00016878,2]
[376040354,1753834241916,-400.0,0.00016878,2]
[376040356,1753834241926,-400.0,0.00016878,2]
[376040359,1753834241940,-672.52,0.00016878,2]
[376040361,1753834241950,-899.59,0.00016878,2]
[376040363,1753834241960,-2727.47,0.00016878,2]
[376040365,1753834241970,-400.0,0.00016878,2]
[376040367,1753834241979,-979.37,0.00016878,2]
[376040369,1753834241989,-712.14,0.00016878,2]
[376040371,1753834241999,-1104.84,0.00016878,2]
[376040373,1753834242008,-177.4,0.00016878,2]
[376040375,1753834242017,-400.0,0.00016878,2]
[376040377,1753834242027,-1034.98,0.00016878,2]
[376040379,1753834242036,-1245.33,0.00016878,2]
[376040381,1753834242047,-400.0,0.00016878,2]
[376040383,1753834242056,-2136.33,0.00016878,2]